[Event "Championnat d'Europe Rapide"]
[Date "2024.12.07"]
[White "Santos Latasa, Jaime"]
[Black "Stankovic, Milos"]
[WhiteElo "2628"]
[BlackElo "2462"]
[Round "3.2"]
[Result "0-1"]
[TimeControl "900+10"]

1. Nf3 {[%clk 00:15:18]} d5 {[%emt 00:00:02] [%clk 00:15:17]} 2. e3 {[%emt
00:00:02] [%clk 00:15:26]} Nf6 {[%emt 00:00:05] [%clk 00:15:21]} 3. c4 {[%emt
00:00:02] [%clk 00:15:36]} e6 {[%emt 00:00:01] [%clk 00:15:29]} 4. Nc3 {[%emt
00:00:04] [%clk 00:15:43]} Nbd7 {[%emt 00:00:08] [%clk 00:15:30]} 5. Qc2 {[%emt
00:00:13] [%clk 00:15:41]} a6 {[%emt 00:00:24] [%clk 00:15:17]} 6. b3 {[%emt
00:00:04] [%clk 00:15:46]} Bd6 {[%emt 00:00:09] [%clk 00:15:17]} 7. Bb2 {[%emt
00:00:05] [%clk 00:15:52]} O-O {[%emt 00:00:07] [%clk 00:15:18]} 8. g3 {[%emt
00:00:19] [%clk 00:15:45]} c6 {[%emt 00:00:41] [%clk 00:14:46]} 9. Bg2 {[%emt
00:01:25] [%clk 00:14:30]} e5 {[%emt 00:00:54] [%clk 00:14:02]} 10. d3 {[%emt
00:00:03] [%clk 00:14:37]} Re8 {[%emt 00:01:00] [%clk 00:13:12]} 11. O-O {[%emt
00:00:02] [%clk 00:14:45]} Nf8 {[%emt 00:00:07] [%clk 00:13:14]} 12. Nd2 {[%emt
00:00:48] [%clk 00:14:07]} Be6 {[%emt 00:01:27] [%clk 00:11:57]} 13. Ne2 {[%emt
00:00:06] [%clk 00:14:12]} Rc8 {[%emt 00:00:20] [%clk 00:11:48]} 14. h3 {[%emt
00:00:07] [%clk 00:14:14]} Qd7 {[%emt 00:00:06] [%clk 00:11:52]} 15. Kh2 {[%emt
00:00:02] [%clk 00:14:22]} Bf5 {[%emt 00:00:50] [%clk 00:11:11]} 16. e4 {[%emt
00:00:13] [%clk 00:14:20]} Bg6 {[%emt 00:00:30] [%clk 00:10:52]} 17. Ng1 {[%emt
00:00:29] [%clk 00:14:00]} Ne6 {[%emt 00:01:15] [%clk 00:09:46]} 18. Ngf3 {[%emt
00:00:03] [%clk 00:14:09]} Nc5 {[%emt 00:00:48] [%clk 00:09:07]} 19. Nh4 {[%emt
00:01:12] [%clk 00:13:08]} dxe4 {[%emt 00:00:31] [%clk 00:08:45]} 20. dxe4
{[%emt 00:00:07] [%clk 00:13:11]} Bc7 {[%emt 00:00:03] [%clk 00:08:52]} 21. Nxg6
{[%emt 00:00:43] [%clk 00:12:38]} hxg6 {[%emt 00:00:07] [%clk 00:08:54]} 22.
Rad1 {[%emt 00:00:14] [%clk 00:12:35]} Rcd8 {[%emt 00:02:28] [%clk 00:06:36]}
23. b4 {[%emt 00:00:49] [%clk 00:11:56]} Qd3 {[%emt 00:00:48] [%clk 00:05:58]}
24. Qc1 {[%emt 00:00:10] [%clk 00:11:57]} Na4 {[%emt 00:00:11] [%clk 00:05:57]}
25. Ba1 {[%emt 00:00:18] [%clk 00:11:49]} b5 {[%emt 00:02:28] [%clk 00:03:38]}
26. c5 {[%emt 00:00:59] [%clk 00:11:00]} Qd7 {[%emt 00:00:21] [%clk 00:03:27]}
27. Nf3 {[%emt 00:01:08] [%clk 00:10:02]} Qe6 {[%emt 00:00:18] [%clk 00:03:19]}
28. Qc2 {[%emt 00:00:01] [%clk 00:10:12]} Rxd1 {[%emt 00:00:50] [%clk 00:02:39]}
29. Rxd1 {[%emt 00:00:03] [%clk 00:10:19]} Qc4 {[%emt 00:00:06] [%clk 00:02:42]}
30. Qxc4 {[%emt 00:00:44] [%clk 00:09:46]} bxc4 {[%emt 00:00:01] [%clk
00:02:50]} 31. Ne1 {[%emt 00:00:12] [%clk 00:09:44]} a5 {[%emt 00:00:29] [%clk
00:02:32]} 32. a3 {[%emt 00:00:01] [%clk 00:09:53]} c3 {[%emt 00:00:57] [%clk
00:01:44]} 33. Rd3 {[%emt 00:00:39] [%clk 00:09:25]} Rd8 {[%emt 00:00:49] [%clk
00:01:04]} 34. Rxd8+ {[%emt 00:00:01] [%clk 00:09:33]} Bxd8 {[%emt 00:00:01]
[%clk 00:01:13]} 35. Kg1 {[%emt 00:00:10] [%clk 00:09:33]} Ne8 {[%emt 00:00:04]
[%clk 00:01:19]} 36. h4 {[%emt 00:01:29] [%clk 00:08:15]} Nc7 {[%emt 00:00:12]
[%clk 00:01:16]} 37. Bh3 {[%emt 00:00:19] [%clk 00:08:06]} Nb5 {[%emt 00:00:28]
[%clk 00:00:59]} 38. Bd7 {[%emt 00:00:47] [%clk 00:07:28]} Nd4 {[%emt 00:00:08]
[%clk 00:01:02]} 39. Nd3 {[%emt 00:00:29] [%clk 00:07:09]} f6 {[%emt 00:00:19]
[%clk 00:00:53]} 40. f4 {[%emt 00:02:16] [%clk 00:05:03]} exf4 {[%emt 00:00:26]
[%clk 00:00:36]} 41. gxf4 {[%emt 00:00:01] [%clk 00:05:12]} Kf8 {[%emt 00:00:02]
[%clk 00:00:45]} 42. Kf2 {[%emt 00:01:05] [%clk 00:04:17]} Ke7 {[%emt 00:00:05]
[%clk 00:00:49]} 43. Bc8 {[%emt 00:00:06] [%clk 00:04:21]} Nc2 {[%emt 00:00:07]
[%clk 00:00:52]} 44. Bxc3 {[%emt 00:00:14] [%clk 00:04:17]} Nxc3 {[%emt
00:00:02] [%clk 00:01:00]} 45. Bb7 {[%emt 00:00:02] [%clk 00:04:25]} Kd7 {[%emt
00:00:11] [%clk 00:00:59]} 46. e5 {[%emt 00:00:03] [%clk 00:04:33]} Nxa3 {[%emt
00:00:11] [%clk 00:00:57]} 47. bxa5 {[%emt 00:00:10] [%clk 00:04:34]} Bxa5
{[%emt 00:00:06] [%clk 00:01:00]} 48. exf6 {[%emt 00:00:12] [%clk 00:04:32]}
gxf6 {[%emt 00:00:30] [%clk 00:00:40]} 49. f5 {[%emt 00:00:01] [%clk 00:04:42]}
gxf5 {[%emt 00:00:01] [%clk 00:00:48]} 50. h5 {[%clk 00:04:51]} Nc4 {[%emt
00:00:07] [%clk 00:00:51]} 51. h6 {[%emt 00:00:10] [%clk 00:04:51]} Ne4+ {[%emt
00:00:01] [%clk 00:01:00]} 52. Kf3 {[%emt 00:00:12] [%clk 00:04:50]} Ne5+ {[%emt
00:00:08] [%clk 00:01:01]} 53. Kf4 {[%emt 00:00:03] [%clk 00:04:57]} Nxd3+
{[%emt 00:00:03] [%clk 00:01:09]} 54. Kxf5 {[%emt 00:00:02] [%clk 00:05:05]} Ng5
{[%emt 00:00:17] [%clk 00:01:01]} 55. Kxf6 {[%emt 00:00:02] [%clk 00:05:14]}
Ne4+ {[%emt 00:00:26] [%clk 00:00:45]} 56. Kf5 {[%emt 00:00:09] [%clk 00:05:14]}
Ndxc5 {[%emt 00:00:08] [%clk 00:00:48]} 57. h7 {[%emt 00:00:07] [%clk 00:05:17]}
Bc3 {[%emt 00:00:05] [%clk 00:00:53]} 58. Ba8 {[%emt 00:00:07] [%clk 00:05:21]}
Nd6+ {[%emt 00:00:10] [%clk 00:00:53]} 59. Kg6 {[%emt 00:00:01] [%clk 00:05:29]}
Ne6 {[%emt 00:00:06] [%clk 00:00:57]} 60. Kh6 {[%emt 00:00:07] [%clk 00:05:33]}
Nf8 {[%emt 00:00:20] [%clk 00:00:47]} 0-1

[Site "Europe Echecs"]

[Event "Championnat d'Europe Rapide"]
[Date "2024.12.07"]
[White "Kilic, Eray"]
[Black "Sarana, Alexey"]
[WhiteElo "2459"]
[BlackElo "2674"]
[Round "3.3"]
[Result "1-0"]
[TimeControl "900+10"]

1. e4 {[%emt 00:00:04] [%clk 00:15:17]} c5 {[%clk 00:15:19]} 2. Nf3 {[%emt
00:00:02] [%clk 00:15:25]} d6 {[%emt 00:00:02] [%clk 00:15:28]} 3. Bb5+ {[%emt
00:00:02] [%clk 00:15:33]} Bd7 {[%emt 00:00:01] [%clk 00:15:37]} 4. Bxd7+ {[%emt
00:00:08] [%clk 00:15:35]} Qxd7 {[%emt 00:00:01] [%clk 00:15:46]} 5. O-O {[%emt
00:00:03] [%clk 00:15:42]} Nc6 {[%emt 00:00:01] [%clk 00:15:55]} 6. c3 {[%emt
00:00:03] [%clk 00:15:50]} d5 {[%emt 00:00:01] [%clk 00:16:03]} 7. e5 {[%emt
00:00:51] [%clk 00:15:09]} e6 {[%emt 00:00:03] [%clk 00:16:10]} 8. d4 {[%emt
00:00:07] [%clk 00:15:12]} Nge7 {[%emt 00:00:39] [%clk 00:15:41]} 9. Re1 {[%emt
00:00:20] [%clk 00:15:02]} Nf5 {[%emt 00:01:04] [%clk 00:14:47]} 10. g4 {[%emt
00:00:38] [%clk 00:14:34]} Nfe7 {[%emt 00:00:02] [%clk 00:14:55]} 11. dxc5
{[%emt 00:00:29] [%clk 00:14:15]} h5 {[%emt 00:00:01] [%clk 00:15:04]} 12. g5
{[%emt 00:01:42] [%clk 00:12:44]} Ng6 {[%emt 00:01:37] [%clk 00:13:37]} 13. b4
{[%emt 00:00:01] [%clk 00:12:52]} a5 {[%emt 00:00:01] [%clk 00:13:45]} 14. Qb3
{[%emt 00:00:31] [%clk 00:12:31]} Be7 {[%emt 00:04:16] [%clk 00:09:40]} 15. Na3
{[%emt 00:01:40] [%clk 00:11:01]} O-O {[%emt 00:00:03] [%clk 00:09:47]} 16. Rb1
{[%emt 00:01:05] [%clk 00:10:07]} axb4 {[%emt 00:00:24] [%clk 00:09:32]} 17.
cxb4 {[%emt 00:00:02] [%clk 00:10:15]} b6 {[%emt 00:00:05] [%clk 00:09:37]} 18.
cxb6 {[%emt 00:02:51] [%clk 00:07:35]} Bxb4 {[%emt 00:00:02] [%clk 00:09:45]}
19. Rd1 {[%clk 00:07:44]} Rfb8 {[%emt 00:00:41] [%clk 00:09:14]} 20. Nb5 {[%emt
00:00:32] [%clk 00:07:22]} Rxb6 {[%emt 00:02:12] [%clk 00:07:12]} 21. a4 {[%clk
00:07:31]} Bc5 {[%emt 00:00:03] [%clk 00:07:19]} 22. Qc3 {[%emt 00:00:35] [%clk
00:07:05]} Be7 {[%emt 00:00:05] [%clk 00:07:25]} 23. Be3 {[%emt 00:00:05] [%clk
00:07:10]} Rb7 {[%emt 00:00:03] [%clk 00:07:32]} 24. Rdc1 {[%emt 00:00:33] [%clk
00:06:47]} Na5 {[%emt 00:02:09] [%clk 00:05:34]} 25. Nc7 {[%emt 00:00:53] [%clk
00:06:03]} Rxb1 {[%emt 00:01:25] [%clk 00:04:19]} 26. Rxb1 {[%emt 00:00:01]
[%clk 00:06:12]} Rc8 {[%emt 00:00:01] [%clk 00:04:28]} 27. Qxa5 {[%emt 00:00:02]
[%clk 00:06:20]} Rxc7 {[%emt 00:00:01] [%clk 00:04:37]} 28. Qb5 {[%emt 00:01:42]
[%clk 00:04:48]} Qc8 {[%emt 00:00:29] [%clk 00:04:18]} 29. a5 {[%emt 00:01:25]
[%clk 00:03:34]} Kh7 {[%emt 00:00:44] [%clk 00:03:44]} 30. a6 {[%emt 00:00:49]
[%clk 00:02:55]} Bc5 {[%emt 00:00:50] [%clk 00:03:03]} 31. Qb7 {[%emt 00:01:28]
[%clk 00:01:37]} Bxe3 {[%emt 00:01:26] [%clk 00:01:47]} 32. Qxc8 {[%emt
00:00:02] [%clk 00:01:46]} Bxf2+ {[%emt 00:00:01] [%clk 00:01:56]} 33. Kxf2
{[%emt 00:00:01] [%clk 00:01:55]} Rxc8 {[%clk 00:02:05]} 34. a7 {[%emt 00:00:13]
[%clk 00:01:53]} Rc2+ {[%emt 00:00:03] [%clk 00:02:13]} 35. Ke3 {[%emt 00:00:02]
[%clk 00:01:59]} Ra2 {[%emt 00:00:02] [%clk 00:02:21]} 36. Rb7 {[%emt 00:00:02]
[%clk 00:02:08]} Ra3+ {[%emt 00:01:37] [%clk 00:00:54]} 37. Kd4 {[%emt 00:00:01]
[%clk 00:02:17]} Nf4 {[%emt 00:00:44] [%clk 00:00:20]} 38. Rxf7 {[%emt 00:01:09]
[%clk 00:01:19]} Nd3 {[%emt 00:00:14] [%clk 00:00:16]} 39. a8=Q Rxa8 {[%clk
00:00:25]} 40. Kxd3 {[%emt 00:00:01] [%clk 00:01:13]} Kg6 {[%emt 00:00:02] [%clk
00:00:33]} 41. Rf4 {[%clk 00:01:22]} h4 {[%emt 00:00:07] [%clk 00:00:37]} 42.
Rxh4 {[%emt 00:00:22] [%clk 00:01:10]} Kf5 {[%clk 00:00:46]} 43. Ke3 {[%emt
00:00:02] [%clk 00:01:18]} Ra3+ {[%emt 00:00:02] [%clk 00:00:54]} 44. Kf2 {[%emt
00:00:01] [%clk 00:01:27]} g6 {[%emt 00:00:12] [%clk 00:00:52]} 45. Kg3 {[%emt
00:00:03] [%clk 00:01:34]} 1-0

[Site "Europe Echecs"]

[Event "Championnat d'Europe Rapide"]
[Date "2024.12.07"]
[White "Van Foreest, Jorden"]
[Black "Samunenkov, Ihor"]
[WhiteElo "2677"]
[BlackElo "2543"]
[Round "3.4"]
[Result "1-0"]
[TimeControl "900+10"]

1. d4 {[%clk 00:15:18]} d5 {[%emt 00:00:02] [%clk 00:15:17]} 2. Nf3 {[%emt
00:00:07] [%clk 00:15:21]} Nf6 {[%emt 00:00:04] [%clk 00:15:23]} 3. Bf4 {[%emt
00:00:13] [%clk 00:15:17]} e6 {[%emt 00:00:24] [%clk 00:15:10]} 4. e3 {[%emt
00:00:03] [%clk 00:15:24]} Bd6 {[%emt 00:00:04] [%clk 00:15:16]} 5. Bd3 {[%emt
00:00:30] [%clk 00:15:04]} O-O {[%emt 00:00:09] [%clk 00:15:17]} 6. O-O {[%emt
00:00:10] [%clk 00:15:04]} b6 {[%emt 00:01:52] [%clk 00:13:36]} 7. Nbd2 {[%emt
00:00:24] [%clk 00:14:50]} Bxf4 {[%emt 00:00:31] [%clk 00:13:15]} 8. exf4 {[%emt
00:00:01] [%clk 00:14:58]} c5 {[%emt 00:00:03] [%clk 00:13:23]} 9. c3 {[%emt
00:00:31] [%clk 00:14:36]} Ba6 {[%emt 00:00:06] [%clk 00:13:28]} 10. Bxa6 {[%emt
00:00:06] [%clk 00:14:40]} Nxa6 {[%emt 00:00:02] [%clk 00:13:35]} 11. Re1 {[%emt
00:00:47] [%clk 00:14:04]} b5 {[%emt 00:01:44] [%clk 00:12:00]} 12. Qe2 {[%emt
00:00:29] [%clk 00:13:45]} Qb6 {[%emt 00:00:22] [%clk 00:11:49]} 13. a3 {[%emt
00:00:02] [%clk 00:13:52]} Rac8 {[%emt 00:00:38] [%clk 00:11:21]} 14. Qd3 {[%emt
00:01:10] [%clk 00:12:52]} cxd4 {[%emt 00:01:31] [%clk 00:10:00]} 15. cxd4
{[%emt 00:00:24] [%clk 00:12:38]} Nb8 {[%emt 00:00:55] [%clk 00:09:16]} 16. b4
{[%emt 00:00:43] [%clk 00:12:04]} Nc6 {[%emt 00:01:59] [%clk 00:07:27]} 17. Reb1
{[%emt 00:02:15] [%clk 00:09:59]} Ne8 {[%emt 00:01:13] [%clk 00:06:24]} 18. Nb3
{[%emt 00:01:03] [%clk 00:09:07]} Nf6 {[%emt 00:02:29] [%clk 00:04:04]} 19. Nc5
{[%emt 00:00:09] [%clk 00:09:07]} Rfd8 {[%emt 00:00:03] [%clk 00:04:12]} 20. g3
{[%emt 00:01:55] [%clk 00:07:22]} Ne4 {[%emt 00:00:35] [%clk 00:03:47]} 21. Rc1
{[%emt 00:00:09] [%clk 00:07:23]} g6 {[%emt 00:01:20] [%clk 00:02:38]} 22. Kg2
{[%emt 00:00:21] [%clk 00:07:11]} Nd6 {[%emt 00:00:17] [%clk 00:02:32]} 23. h4
{[%emt 00:00:01] [%clk 00:07:20]} a5 {[%emt 00:00:34] [%clk 00:02:08]} 24. bxa5
{[%emt 00:01:30] [%clk 00:06:00]} Nxa5 {[%emt 00:00:03] [%clk 00:02:15]} 25. h5
{[%emt 00:00:01] [%clk 00:06:08]} Nab7 {[%emt 00:00:09] [%clk 00:02:16]} 26.
hxg6 {[%emt 00:00:02] [%clk 00:06:16]} hxg6 {[%emt 00:00:02] [%clk 00:02:23]}
27. Nxe6 {[%emt 00:00:06] [%clk 00:06:20]} Rxc1 {[%clk 00:01:51]} 28. Rxc1
{[%emt 00:00:43] [%clk 00:06:29]} Rc8 {[%emt 00:00:09] [%clk 00:01:52]} 29.
Rxc8+ {[%emt 00:00:48] [%clk 00:05:51]} Nxc8 {[%emt 00:00:02] [%clk 00:02:00]}
30. Neg5 {[%emt 00:00:01] [%clk 00:05:59]} Nbd6 {[%emt 00:01:07] [%clk
00:01:03]} 31. Qb1 {[%emt 00:00:15] [%clk 00:05:54]} Qd8 {[%emt 00:00:29] [%clk
00:00:44]} 32. Qh1 {[%emt 00:00:11] [%clk 00:05:53]} Qf6 {[%emt 00:00:02] [%clk
00:00:52]} 33. Qh7+ {[%emt 00:00:16] [%clk 00:05:47]} Kf8 {[%emt 00:00:02] [%clk
00:01:00]} 34. Ne5 {[%emt 00:00:01] [%clk 00:05:56]} Nb6 {[%emt 00:00:06] [%clk
00:01:05]} 35. Qh4 {[%emt 00:00:44] [%clk 00:05:21]} Ke7 {[%emt 00:00:28] [%clk
00:00:47]} 36. Ng4 {[%emt 00:00:10] [%clk 00:05:22]} Nf5 {[%emt 00:00:02] [%clk
00:00:55]} 37. Qh1 {[%emt 00:02:11] [%clk 00:03:20]} Qxd4 {[%emt 00:00:09] [%clk
00:00:57]} 38. Ne5 {[%emt 00:00:55] [%clk 00:02:34]} Kd6 {[%emt 00:00:35] [%clk
00:00:32]} 39. Nexf7+ {[%emt 00:00:10] [%clk 00:02:34]} Kc6 {[%emt 00:00:02]
[%clk 00:00:40]} 40. Ne5+ {[%emt 00:00:04] [%clk 00:02:41]} Kb7 {[%emt 00:00:24]
[%clk 00:00:25]} 41. Qh7+ {[%emt 00:00:02] [%clk 00:02:49]} 1-0

[Site "Europe Echecs"]

[Event "Championnat d'Europe Rapide"]
[Date "2024.12.07"]
[White "Deac, Bogdan-Daniel"]
[Black "Alienkin, Aleksander"]
[WhiteElo "2696"]
[BlackElo "2337"]
[Round "3.5"]
[Result "1-0"]
[TimeControl "900+10"]

1. Nf3 {[%emt 00:00:04] [%clk 00:15:16]} d5 {[%emt 00:00:14] [%clk 00:15:06]} 2.
e3 {[%emt 00:00:04] [%clk 00:15:21]} Nf6 {[%emt 00:00:16] [%clk 00:15:00]} 3. c4
{[%emt 00:00:03] [%clk 00:15:29]} c6 {[%emt 00:00:46] [%clk 00:14:24]} 4. Nc3
{[%emt 00:00:03] [%clk 00:15:37]} g6 {[%emt 00:01:21] [%clk 00:13:12]} 5. d4
{[%emt 00:00:07] [%clk 00:15:40]} Bg7 {[%emt 00:00:04] [%clk 00:13:18]} 6. Be2
{[%emt 00:00:02] [%clk 00:15:47]} O-O {[%emt 00:00:10] [%clk 00:13:19]} 7. O-O
{[%emt 00:00:03] [%clk 00:15:54]} Bg4 {[%emt 00:00:09] [%clk 00:13:20]} 8. cxd5
{[%emt 00:00:08] [%clk 00:15:57]} cxd5 {[%emt 00:00:46] [%clk 00:12:43]} 9. Qb3
{[%emt 00:00:02] [%clk 00:16:04]} b6 {[%emt 00:01:29] [%clk 00:11:25]} 10. h3
{[%emt 00:00:12] [%clk 00:16:02]} Bc8 {[%emt 00:00:45] [%clk 00:10:50]} 11. Bd2
{[%emt 00:00:08] [%clk 00:16:04]} Bb7 {[%emt 00:00:03] [%clk 00:10:57]} 12. Rfc1
{[%emt 00:00:03] [%clk 00:16:11]} Nbd7 {[%emt 00:00:17] [%clk 00:10:48]} 13. a4
{[%emt 00:00:43] [%clk 00:15:40]} a6 {[%emt 00:00:59] [%clk 00:10:00]} 14. Be1
{[%emt 00:00:21] [%clk 00:15:28]} e6 {[%emt 00:00:11] [%clk 00:09:59]} 15. Na2
{[%emt 00:00:13] [%clk 00:15:25]} Qb8 {[%emt 00:00:41] [%clk 00:09:28]} 16. Rc2
{[%emt 00:01:09] [%clk 00:14:26]} Rc8 {[%emt 00:00:32] [%clk 00:09:06]} 17. Rac1
{[%emt 00:00:05] [%clk 00:14:31]} Qa7 {[%emt 00:00:15] [%clk 00:09:02]} 18. Nb4
{[%emt 00:00:15] [%clk 00:14:25]} Rxc2 {[%emt 00:00:25] [%clk 00:08:47]} 19.
Rxc2 {[%emt 00:00:03] [%clk 00:14:31]} Bf8 {[%emt 00:00:26] [%clk 00:08:32]} 20.
Nc6 {[%emt 00:00:58] [%clk 00:13:43]} Bxc6 {[%emt 00:00:02] [%clk 00:08:40]} 21.
Rxc6 {[%emt 00:00:02] [%clk 00:13:52]} Qb7 {[%emt 00:00:07] [%clk 00:08:43]} 22.
Rc3 {[%emt 00:00:18] [%clk 00:13:43]} Ne4 {[%emt 00:00:12] [%clk 00:08:42]} 23.
Rc2 {[%emt 00:00:02] [%clk 00:13:50]} Rc8 {[%emt 00:00:12] [%clk 00:08:40]} 24.
Bd3 {[%emt 00:01:43] [%clk 00:12:17]} Nd6 {[%emt 00:00:32] [%clk 00:08:17]} 25.
Nd2 {[%emt 00:00:15] [%clk 00:12:13]} Rxc2 {[%emt 00:00:31] [%clk 00:07:56]} 26.
Qxc2 {[%emt 00:00:06] [%clk 00:12:17]} a5 {[%emt 00:00:27] [%clk 00:07:40]} 27.
Nb1 {[%emt 00:00:28] [%clk 00:11:58]} Qc8 {[%emt 00:00:22] [%clk 00:07:28]} 28.
Nc3 {[%emt 00:00:27] [%clk 00:11:42]} Ne8 {[%emt 00:00:57] [%clk 00:06:40]} 29.
f3 {[%emt 00:01:39] [%clk 00:10:13]} Bb4 {[%emt 00:00:11] [%clk 00:06:39]} 30.
g4 {[%emt 00:00:06] [%clk 00:10:17]} Kg7 {[%emt 00:00:06] [%clk 00:06:43]} 31.
Bg3 {[%emt 00:00:20] [%clk 00:10:07]} Nd6 {[%emt 00:00:20] [%clk 00:06:33]} 32.
Na2 {[%emt 00:02:37] [%clk 00:07:40]} Qxc2 {[%emt 00:01:16] [%clk 00:05:27]} 33.
Bxc2 {[%emt 00:00:06] [%clk 00:07:44]} Nc4 {[%emt 00:00:08] [%clk 00:05:29]} 34.
Nxb4 {[%emt 00:00:56] [%clk 00:06:58]} axb4 {[%emt 00:00:10] [%clk 00:05:29]}
35. b3 {[%clk 00:07:07]} Nxe3 {[%emt 00:00:19] [%clk 00:05:20]} 36. Bd3 {[%emt
00:00:03] [%clk 00:07:12]} Nd1 {[%emt 00:02:30] [%clk 00:03:02]} 37. Bd6 {[%emt
00:03:34] [%clk 00:03:48]} f6 {[%emt 00:01:08] [%clk 00:02:03]} 38. Bxb4 {[%emt
00:02:58] [%clk 00:01:01]} e5 {[%emt 00:00:06] [%clk 00:02:08]} 39. Bb5 {[%emt
00:00:01] [%clk 00:01:09]} Nf8 {[%emt 00:00:06] [%clk 00:02:11]} 40. dxe5 {[%emt
00:00:30] [%clk 00:00:50]} fxe5 {[%emt 00:00:03] [%clk 00:02:19]} 41. Bd6 {[%emt
00:00:14] [%clk 00:00:45]} e4 {[%emt 00:00:16] [%clk 00:02:13]} 42. fxe4 {[%emt
00:00:36] [%clk 00:00:19]} dxe4 {[%emt 00:00:02] [%clk 00:02:22]} 43. Bc7 {[%emt
00:00:09] [%clk 00:00:19]} Kf6 {[%emt 00:00:24] [%clk 00:02:09]} 44. Bxb6 {[%emt
00:00:04] [%clk 00:00:25]} Ke5 {[%clk 00:02:18]} 45. a5 {[%emt 00:00:05] [%clk
00:00:31]} Nc3 {[%emt 00:00:08] [%clk 00:02:19]} 46. Bc4 {[%emt 00:00:11] [%clk
00:00:29]} Nd7 {[%emt 00:00:47] [%clk 00:01:42]} 47. Bc7+ {[%emt 00:00:15] [%clk
00:00:24]} 1-0

[Site "Europe Echecs"]